[Event "12h Blitz Kuppenheim Vorrunde"]
[Site "Kuppenheim"]
[Date "2005.06.04"]
[Round "?"]
[White "KingLoek"]
[Black "Schäfer"]
[Result "1-0"]
[ECO "E90"]
[WhiteElo "2685"]
[BlackElo "2100"]
[PlyCount "49"]
[EventDate "2005.06.03"]
[EventType "blitz"]
[Source "Kuppenheim"]
[SourceDate "2005.01.01"]
[TimeControl "240"]

1. d4 {[%emt 0:00:01]} Nf6 {[%emt 0:00:06]} 2. Nf3 {[%emt 0:00:03]} g6 {
[%emt 0:00:03]} 3. c4 {[%emt 0:00:05]} Bg7 {[%emt 0:00:05]} 4. Nc3 {
[%emt 0:00:01]} d6 {[%emt 0:00:04]} 5. e4 {[%emt 0:00:01]} c6 {[%emt 0:00:04]}
6. Be2 {[%emt 0:00:02]} O-O {[%emt 0:00:02]} 7. O-O {[%emt 0:00:01]} Qe8 {
[%emt 0:00:08]} 8. e5 {[%emt 0:00:05]} Nfd7 {[%emt 0:00:05]} 9. exd6 {
[%emt 0:00:04]} exd6 {[%emt 0:00:03]} 10. Bf4 {[%emt 0:00:00]} Qe6 {
[%emt 0:00:09]} 11. Re1 {[%emt 0:00:07]} Rd8 {[%emt 0:00:12]} 12. Bd3 {
[%emt 0:00:10]} Qg4 {[%emt 0:00:09]} 13. Bxd6 {[%emt 0:00:04]} Nf6 {
[%emt 0:00:15]} 14. c5 {[%emt 0:00:04]} Bf5 {[%emt 0:00:33]} 15. h3 {
[%emt 0:00:06]} Qh5 {[%emt 0:00:10]} 16. g4 {[%emt 0:00:08]} Nxg4 {
[%emt 0:00:07]} 17. Bxf5 {[%emt 0:00:02]} gxf5 {[%emt 0:00:15]} 18. hxg4 {
[%emt 0:00:04]} fxg4 {[%emt 0:00:02]} 19. Ne5 {[%emt 0:00:03]} f5 {
[%emt 0:00:19]} 20. Qb3+ {[%emt 0:00:04]} Kh8 {[%emt 0:00:23]} 21. Nf7+ {
[%emt 0:00:03]} Kg8 {[%emt 0:00:03]} 22. Nxd8+ {[%emt 0:00:01]} Kh8 {
[%emt 0:00:10]} 23. Nf7+ {[%emt 0:00:01]} Kg8 {[%emt 0:00:03]} 24. Nh6+ {
[%emt 0:00:01]} Kh8 {[%emt 0:00:03]} 25. Qg8# {
(Lag: Av=0.61s, max=1.3s) [%emt 0:00:00]} 1-0

[Event "12h Blitz Kuppenheim Vorrunde"]
[Site "Kuppenheim"]
[Date "2005.06.04"]
[Round "?"]
[White "Trapp"]
[Black "KingLoek"]
[Result "0-1"]
[ECO "B85"]
[WhiteElo "2000"]
[BlackElo "2685"]
[PlyCount "40"]
[EventDate "2005.06.03"]
[EventType "blitz"]
[Source "Kuppenheim"]
[SourceDate "2005.01.01"]
[TimeControl "240"]

1. e4 {[%emt 0:00:02]} c5 {[%emt 0:00:03]} 2. Nf3 {[%emt 0:00:00]} d6 {
[%emt 0:00:03]} 3. d4 {[%emt 0:00:00]} cxd4 {[%emt 0:00:01]} 4. Nxd4 {
[%emt 0:00:00]} Nf6 {[%emt 0:00:00]} 5. Nc3 {[%emt 0:00:01]} a6 {[%emt 0:00:01]
} 6. Be2 {[%emt 0:00:02]} e6 {[%emt 0:00:01]} 7. O-O {[%emt 0:00:02]} Be7 {
[%emt 0:00:00]} 8. Kh1 {[%emt 0:00:03]} O-O {[%emt 0:00:01]} 9. f4 {
[%emt 0:00:02]} Qc7 {[%emt 0:00:01]} 10. a4 {[%emt 0:00:05]} b6 {[%emt 0:00:03]
} 11. Bf3 {[%emt 0:00:03]} Bb7 {[%emt 0:00:03]} 12. Qe1 {[%emt 0:00:01]} Nbd7 {
[%emt 0:00:03]} 13. f5 {[%emt 0:00:03]} e5 {[%emt 0:00:11]} 14. Nb3 {
[%emt 0:00:01]} b5 {[%emt 0:00:05]} 15. axb5 {[%emt 0:00:15]} axb5 {
[%emt 0:00:02]} 16. Rxa8 {[%emt 0:00:16]} Rxa8 {[%emt 0:00:03]} 17. Qe2 {
[%emt 0:00:10]} b4 {[%emt 0:00:06]} 18. Nd1 {[%emt 0:00:19]} Ba6 {
[%emt 0:00:04]} 19. Qf2 {[%emt 0:00:09]} Bxf1 {[%emt 0:00:02]} 20. Qxf1 {
[%emt 0:00:00]} Qxc2 {
Kuppenheim gibt auf  (Lag: Av=0.51s, max=0.9s) [%emt 0:00:02]} 0-1

[Event "12h Blitz Kuppenheim Vorrunde"]
[Site "Kuppenheim"]
[Date "2005.06.04"]
[Round "?"]
[White "KingLoek"]
[Black "Lutz"]
[Result "1-0"]
[ECO "A85"]
[WhiteElo "2685"]
[BlackElo "2150"]
[PlyCount "97"]
[EventDate "2005.06.03"]
[EventType "blitz"]
[Source "Kuppenheim"]
[SourceDate "2005.01.01"]
[TimeControl "240"]

1. d4 {[%emt 0:00:01]} d5 {[%emt 0:00:01]} 2. c4 {[%emt 0:00:02]} e6 {
[%emt 0:00:01]} 3. Nc3 {[%emt 0:00:02]} f5 {[%emt 0:00:01]} 4. Nf3 {
[%emt 0:00:02]} Nf6 {[%emt 0:00:01]} 5. Bf4 {[%emt 0:00:03]} c6 {[%emt 0:00:01]
} 6. e3 {[%emt 0:00:02]} Bd6 {[%emt 0:00:01]} 7. c5 {[%emt 0:00:01]} Bxf4 {
[%emt 0:00:02]} 8. exf4 {[%emt 0:00:01]} O-O {[%emt 0:00:00]} 9. Bd3 {
[%emt 0:00:02]} Ne4 {[%emt 0:00:01]} 10. Ne2 {[%emt 0:00:05]} Nd7 {
[%emt 0:00:02]} 11. O-O {[%emt 0:00:04]} Re8 {[%emt 0:00:12]} 12. Ne1 {
[%emt 0:00:07]} Nf8 {[%emt 0:00:03]} 13. f3 {[%emt 0:00:02]} Nf6 {
[%emt 0:00:01]} 14. b4 {[%emt 0:00:02]} a6 {[%emt 0:00:02]} 15. a4 {
[%emt 0:00:01]} Bd7 {[%emt 0:00:01]} 16. Qd2 {[%emt 0:00:06]} Qe7 {
[%emt 0:00:02]} 17. Rb1 {[%emt 0:00:03]} Rec8 {[%emt 0:00:25]} 18. Bc2 {
[%emt 0:00:02]} Ne8 {[%emt 0:00:02]} 19. Nd3 {[%emt 0:00:04]} Nc7 {
[%emt 0:00:02]} 20. Rfe1 {[%emt 0:00:03]} Be8 {[%emt 0:00:01]} 21. Nc3 {
[%emt 0:00:08]} Qf6 {[%emt 0:00:02]} 22. Qe3 {[%emt 0:00:05]} g6 {
[%emt 0:00:10]} 23. g4 {[%emt 0:00:05]} Kf7 {[%emt 0:00:14]} 24. Kg2 {
[%emt 0:00:03]} Bd7 {[%emt 0:00:03]} 25. Qf2 {[%emt 0:00:10]} Re8 {
[%emt 0:00:02]} 26. h4 {[%emt 0:00:03]} Kg7 {[%emt 0:00:08]} 27. Rg1 {
[%emt 0:00:08]} Kh8 {[%emt 0:00:04]} 28. Ne5 {[%emt 0:00:08]} Red8 {
[%emt 0:00:10]} 29. g5 {[%emt 0:00:14]} Qg7 {[%emt 0:00:02]} 30. Ne2 {
[%emt 0:00:02]} Be8 {[%emt 0:00:01]} 31. Ng3 {[%emt 0:00:02]} Nd7 {
[%emt 0:00:01]} 32. Nd3 {[%emt 0:00:03]} Qf8 {[%emt 0:00:02]} 33. Rh1 {
[%emt 0:00:02]} Qg7 {[%emt 0:00:05]} 34. h5 {[%emt 0:00:02]} Bf7 {
[%emt 0:00:07]} 35. hxg6 {[%emt 0:00:05]} Bxg6 {[%emt 0:00:01]} 36. Rh6 {
[%emt 0:00:01]} Kg8 {[%emt 0:00:02]} 37. Rbh1 {[%emt 0:00:05]} Nf8 {
[%emt 0:00:04]} 38. Ne5 {[%emt 0:00:03]} Re8 {[%emt 0:00:08]} 39. Nh5 {
[%emt 0:00:02]} Bxh5 {[%emt 0:00:05]} 40. R1xh5 {[%emt 0:00:02]} Re7 {
[%emt 0:00:07]} 41. Qh4 {[%emt 0:00:07]} Ne8 {[%emt 0:00:13]} 42. a5 {
[%emt 0:00:08]} Rc8 {[%emt 0:00:06]} 43. Kf1 {[%emt 0:00:06]} Ra8 {
[%emt 0:00:01]} 44. Rf6 {[%emt 0:00:08]} Rc7 {[%emt 0:00:17]} 45. Rhh6 {
[%emt 0:00:09]} Rac8 {[%emt 0:00:06]} 46. Rxe6 {[%emt 0:00:09]} Nxe6 {
[%emt 0:00:02]} 47. Rxe6 {[%emt 0:00:03]} Re7 {[%emt 0:00:01]} 48. Bxf5 {
[%emt 0:00:02]} Ra8 {[%emt 0:00:06]} 49. Rh6 {
Kuppenheim gibt auf  (Lag: Av=0.66s, max=2.5s) [%emt 0:00:05]} 1-0

[Event "12h Blitz Kuppenheim Vorrunde"]
[Site "Kuppenheim"]
[Date "2005.06.04"]
[Round "?"]
[White "Schaeuble"]
[Black "KingLoek"]
[Result "0-1"]
[ECO "D30"]
[WhiteElo "1550"]
[BlackElo "2685"]
[PlyCount "60"]
[EventDate "2005.06.03"]
[EventType "blitz"]
[Source "Kuppenheim"]
[SourceDate "2005.01.01"]
[TimeControl "240"]

1. Nf3 {[%emt 0:00:02]} Nf6 {[%emt 0:00:02]} 2. c4 {[%emt 0:00:01]} e6 {
[%emt 0:00:04]} 3. d4 {[%emt 0:00:03]} d5 {[%emt 0:00:01]} 4. e3 {
[%emt 0:00:02]} Be7 {[%emt 0:00:04]} 5. Bd3 {[%emt 0:00:02]} O-O {
[%emt 0:00:01]} 6. O-O {[%emt 0:00:04]} b6 {[%emt 0:00:03]} 7. b3 {
[%emt 0:00:01]} Bb7 {[%emt 0:00:01]} 8. Nbd2 {[%emt 0:00:02]} Nbd7 {
[%emt 0:00:01]} 9. Bb2 {[%emt 0:00:02]} c5 {[%emt 0:00:01]} 10. dxc5 {
[%emt 0:00:12]} Nxc5 {[%emt 0:00:03]} 11. Be2 {[%emt 0:00:05]} Rc8 {
[%emt 0:00:07]} 12. cxd5 {[%emt 0:00:03]} Nxd5 {[%emt 0:00:04]} 13. Nd4 {
[%emt 0:00:04]} Bf6 {[%emt 0:00:03]} 14. Qb1 {[%emt 0:00:20]} Qe7 {
[%emt 0:00:10]} 15. N2f3 {[%emt 0:00:26]} Rfd8 {[%emt 0:00:09]} 16. a3 {
[%emt 0:00:18]} g6 {[%emt 0:00:07]} 17. b4 {[%emt 0:00:04]} Na4 {[%emt 0:00:03]
} 18. Qa2 {[%emt 0:00:09]} e5 {[%emt 0:00:08]} 19. Bb5 {[%emt 0:00:19]} Nac3 {
[%emt 0:00:08]} 20. Bxc3 {[%emt 0:00:09]} Nxc3 {[%emt 0:00:01]} 21. Qb3 {
[%emt 0:00:07]} exd4 {[%emt 0:00:03]} 22. Nxd4 {[%emt 0:00:12]} Bxd4 {
[%emt 0:00:02]} 23. exd4 {[%emt 0:00:02]} Qg5 {[%emt 0:00:10]} 24. f3 {
[%emt 0:00:13]} Qxb5 {[%emt 0:00:03]} 25. Rfe1 {[%emt 0:00:05]} Qd3 {
[%emt 0:00:06]} 26. Qb2 {[%emt 0:00:13]} Rxd4 {[%emt 0:00:09]} 27. Re7 {
[%emt 0:00:04]} Bd5 {[%emt 0:00:10]} 28. Rae1 {[%emt 0:00:04]} Bxf3 {
[%emt 0:00:09]} 29. gxf3 {[%emt 0:00:21]} Qxf3 {[%emt 0:00:04]} 30. R7e3 {
[%emt 0:00:05]} Rg4+ {
Kuppenheim gibt auf  (Lag: Av=0.69s, max=2.8s) [%emt 0:00:02]} 0-1

[Event "12h Blitz Kuppenheim Vorrunde"]
[Site "Kuppenheim"]
[Date "2005.06.04"]
[Round "?"]
[White "Hunerfauth"]
[Black "KingLoek"]
[Result "0-1"]
[ECO "B50"]
[WhiteElo "2050"]
[BlackElo "2685"]
[PlyCount "62"]
[EventDate "2005.06.03"]
[EventType "blitz"]
[Source "Kuppenheim"]
[SourceDate "2005.01.01"]
[TimeControl "240"]

1. e4 {[%emt 0:00:03]} c5 {[%emt 0:00:03]} 2. Nf3 {[%emt 0:00:02]} d6 {
[%emt 0:00:01]} 3. c3 {[%emt 0:00:02]} Nf6 {[%emt 0:00:03]} 4. Be2 {
[%emt 0:00:01]} Nc6 {[%emt 0:00:03]} 5. d4 {[%emt 0:00:02]} cxd4 {
[%emt 0:00:04]} 6. cxd4 {[%emt 0:00:02]} Nxe4 {[%emt 0:00:04]} 7. d5 {
[%emt 0:00:01]} Qa5+ {[%emt 0:00:01]} 8. Nc3 {[%emt 0:00:02]} Nxc3 {
[%emt 0:00:05]} 9. bxc3 {[%emt 0:00:02]} Ne5 {[%emt 0:00:01]} 10. Nxe5 {
[%emt 0:00:06]} Qxc3+ {[%emt 0:00:04]} 11. Bd2 {[%emt 0:00:01]} Qxe5 {
[%emt 0:00:01]} 12. O-O {[%emt 0:00:06]} Qxd5 {[%emt 0:00:05]} 13. Bf3 {
[%emt 0:00:13]} Qf5 {[%emt 0:00:51]} 14. Rc1 {[%emt 0:00:08]} Qd7 {
[%emt 0:00:34]} 15. Ba5 {[%emt 0:00:09]} e6 {[%emt 0:00:09]} 16. Rc7 {
[%emt 0:00:12]} Qb5 {[%emt 0:00:01]} 17. Qd2 {[%emt 0:00:15]} Be7 {
[%emt 0:00:09]} 18. Rfc1 {[%emt 0:00:05]} Bd7 {[%emt 0:00:25]} 19. Rxb7 {
[%emt 0:00:07]} Qg5 {[%emt 0:00:01]} 20. Qxg5 {[%emt 0:00:15]} Bxg5 {
[%emt 0:00:02]} 21. Rcc7 {[%emt 0:00:03]} Rc8 {[%emt 0:00:14]} 22. h4 {
[%emt 0:00:10]} Rxc7 {[%emt 0:00:02]} 23. Bxc7 {[%emt 0:00:16]} Bd8 {
[%emt 0:00:01]} 24. Bxd6 {[%emt 0:00:10]} a5 {[%emt 0:00:01]} 25. Rb8 {
[%emt 0:00:10]} f6 {[%emt 0:00:04]} 26. h5 {[%emt 0:00:29]} a4 {[%emt 0:00:02]}
27. h6 {[%emt 0:00:03]} g6 {[%emt 0:00:03]} 28. Ra8 {[%emt 0:00:07]} Rg8 {
[%emt 0:00:04]} 29. Bb7 {[%emt 0:00:05]} f5 {[%emt 0:00:03]} 30. Bc8 {
[%emt 0:00:02]} Bxc8 {[%emt 0:00:02]} 31. Rxc8 {[%emt 0:00:01]} Kd7 {
Zeit  (Lag: Av=0.59s, max=1.5s) . [%emt 0:00:00]} 0-1

[Event "12h Blitz Kuppenheim Endrunde"]
[Site "Kuppenheim"]
[Date "2005.06.04"]
[Round "?"]
[White "Peci"]
[Black "KingLoek"]
[Result "0-1"]
[ECO "B23"]
[WhiteElo "2000"]
[BlackElo "2685"]
[PlyCount "96"]
[EventDate "2005.06.03"]
[EventType "blitz"]
[Source "Kuppenheim"]
[SourceDate "2005.01.01"]
[TimeControl "240"]

1. e4 {[%emt 0:00:08]} c5 {[%emt 0:00:01]} 2. Nc3 {[%emt 0:00:01]} Nc6 {
[%emt 0:00:02]} 3. Bc4 {[%emt 0:00:00]} e6 {[%emt 0:00:02]} 4. d3 {
[%emt 0:00:00]} Nf6 {[%emt 0:00:04]} 5. Bb3 {[%emt 0:00:00]} d5 {[%emt 0:00:04]
} 6. Bg5 {[%emt 0:00:02]} d4 {[%emt 0:00:15]} 7. Nce2 {[%emt 0:00:02]} Be7 {
[%emt 0:00:01]} 8. Bd2 {[%emt 0:00:01]} O-O {[%emt 0:00:02]} 9. f4 {
[%emt 0:00:01]} b5 {[%emt 0:00:15]} 10. a3 {[%emt 0:00:02]} a5 {[%emt 0:00:02]}
11. Ng3 {[%emt 0:00:02]} a4 {[%emt 0:00:02]} 12. Ba2 {[%emt 0:00:01]} Rb8 {
[%emt 0:00:07]} 13. Nh5 {[%emt 0:00:01]} c4 {[%emt 0:00:03]} 14. Nxf6+ {
[%emt 0:00:06]} Bxf6 {[%emt 0:00:01]} 15. Qh5 {[%emt 0:00:04]} g6 {
[%emt 0:00:03]} 16. Qg4 {[%emt 0:00:04]} c3 {[%emt 0:00:02]} 17. bxc3 {
[%emt 0:00:02]} dxc3 {[%emt 0:00:01]} 18. Be3 {[%emt 0:00:01]} Nd4 {
[%emt 0:00:02]} 19. Bxd4 {[%emt 0:00:03]} Bxd4 {[%emt 0:00:02]} 20. Nf3 {
[%emt 0:00:01]} b4 {[%emt 0:00:04]} 21. axb4 {[%emt 0:00:04]} Rxb4 {
[%emt 0:00:01]} 22. h4 {[%emt 0:00:10]} h5 {[%emt 0:00:02]} 23. Qg3 {
[%emt 0:00:03]} Rb2 {[%emt 0:00:03]} 24. f5 {[%emt 0:00:04]} Rxc2 {
[%emt 0:00:25]} 25. Nxd4 {[%emt 0:00:04]} Qxd4 {[%emt 0:00:02]} 26. fxe6 {
[%emt 0:00:03]} Kg7 {[%emt 0:00:20]} 27. Rf1 {[%emt 0:00:09]} Bxe6 {
[%emt 0:00:16]} 28. Bxe6 {[%emt 0:00:03]} fxe6 {[%emt 0:00:01]} 29. Rxf8 {
[%emt 0:00:03]} Kxf8 {[%emt 0:00:04]} 30. Qb8+ {[%emt 0:00:03]} Ke7 {
[%emt 0:00:05]} 31. Qc7+ {[%emt 0:00:05]} Kf8 {[%emt 0:00:05]} 32. Qb8+ {
[%emt 0:00:05]} Kg7 {[%emt 0:00:01]} 33. Qc7+ {[%emt 0:00:02]} Kg8 {
[%emt 0:00:02]} 34. Qb8+ {[%emt 0:00:01]} Kh7 {[%emt 0:00:01]} 35. Qc7+ {
[%emt 0:00:02]} Qg7 {[%emt 0:00:02]} 36. Qf4 {[%emt 0:00:08]} Qa7 {
[%emt 0:00:05]} 37. Kf1 {[%emt 0:00:09]} Rb2 {[%emt 0:00:05]} 38. Rc1 {
[%emt 0:00:04]} c2 {[%emt 0:00:09]} 39. Ke2 {[%emt 0:00:06]} a3 {[%emt 0:00:01]
} 40. Kd2 {[%emt 0:00:05]} a2 {[%emt 0:00:03]} 41. e5 {[%emt 0:00:11]} Rb1 {
[%emt 0:00:03]} 42. Rxc2 {[%emt 0:00:11]} a1=Q {[%emt 0:00:03]} 43. Qf3 {
[%emt 0:00:06]} Q7a5+ {[%emt 0:00:06]} 44. Ke3 {[%emt 0:00:03]} Q1xe5+ {
[%emt 0:00:02]} 45. Qe4 {[%emt 0:00:05]} Re1+ {[%emt 0:00:01]} 46. Re2 {
[%emt 0:00:01]} Rxe2+ {[%emt 0:00:01]} 47. Kxe2 {[%emt 0:00:01]} Qxe4+ {
[%emt 0:00:01]} 48. dxe4 {[%emt 0:00:01]} Qc3 {
Kuppenheim gibt auf  (Lag: Av=0.56s, max=1.7s) [%emt 0:00:00]} 0-1

[Event "12h Blitz Kuppenheim Endrunde"]
[Site "Kuppenheim"]
[Date "2005.06.04"]
[Round "?"]
[White "KingLoek"]
[Black "Manakov"]
[Result "1-0"]
[ECO "E97"]
[WhiteElo "2685"]
[BlackElo "2335"]
[PlyCount "45"]
[EventDate "2005.06.03"]
[EventType "blitz"]
[Source "Kuppenheim"]
[SourceDate "2005.01.01"]
[TimeControl "240"]

1. d4 {[%emt 0:00:01]} g6 {[%emt 0:00:05]} 2. c4 {[%emt 0:00:01]} Bg7 {
[%emt 0:00:00]} 3. Nf3 {[%emt 0:00:00]} Nf6 {[%emt 0:00:02]} 4. Nc3 {
[%emt 0:00:01]} O-O {[%emt 0:00:01]} 5. e4 {[%emt 0:00:01]} d6 {[%emt 0:00:00]}
6. Be2 {[%emt 0:00:01]} e5 {[%emt 0:00:02]} 7. O-O {[%emt 0:00:00]} Nc6 {
[%emt 0:00:01]} 8. d5 {[%emt 0:00:01]} Ne7 {[%emt 0:00:00]} 9. b4 {
[%emt 0:00:00]} Nh5 {[%emt 0:00:04]} 10. Re1 {[%emt 0:00:03]} a5 {
[%emt 0:00:02]} 11. bxa5 {[%emt 0:00:05]} Rxa5 {[%emt 0:00:02]} 12. Nd2 {
[%emt 0:00:04]} Nf4 {[%emt 0:00:02]} 13. Bf1 {[%emt 0:00:01]} Ra8 {
[%emt 0:00:01]} 14. a4 {[%emt 0:00:06]} f5 {[%emt 0:00:03]} 15. Ba3 {
[%emt 0:00:13]} fxe4 {[%emt 0:00:15]} 16. Ndxe4 {[%emt 0:00:09]} Nf5 {
[%emt 0:00:00]} 17. c5 {[%emt 0:00:04]} Re8 {[%emt 0:00:45]} 18. g3 {
[%emt 0:00:09]} Nh5 {[%emt 0:00:05]} 19. g4 {[%emt 0:00:03]} Nd4 {
[%emt 0:00:15]} 20. gxh5 {[%emt 0:00:02]} dxc5 {[%emt 0:00:19]} 21. Bxc5 {
[%emt 0:00:14]} Qh4 {[%emt 0:00:07]} 22. Bxd4 {[%emt 0:00:03]} exd4 {
[%emt 0:00:02]} 23. Nf6+ {
Kuppenheim gibt auf  (Lag: Av=0.61s, max=1.3s) [%emt 0:00:03]} 1-0

[Event "12h Blitz Kuppenheim Endrunde"]
[Site "Kuppenheim"]
[Date "2005.06.04"]
[Round "?"]
[White "Xheladini"]
[Black "KingLoek"]
[Result "0-1"]
[ECO "B30"]
[WhiteElo "2230"]
[BlackElo "2685"]
[PlyCount "60"]
[EventDate "2005.06.03"]
[EventType "blitz"]
[Source "Kuppenheim"]
[SourceDate "2005.01.01"]
[TimeControl "240"]

1. e4 {[%emt 0:00:06]} c5 {[%emt 0:00:02]} 2. Nc3 {[%emt 0:00:04]} Nc6 {
[%emt 0:00:02]} 3. Nf3 {[%emt 0:00:02]} g6 {[%emt 0:00:01]} 4. Bc4 {
[%emt 0:00:02]} Bg7 {[%emt 0:00:01]} 5. O-O {[%emt 0:00:02]} e6 {[%emt 0:00:01]
} 6. Re1 {[%emt 0:00:01]} d6 {[%emt 0:00:04]} 7. a4 {[%emt 0:00:02]} a6 {
[%emt 0:00:02]} 8. d3 {[%emt 0:00:02]} Nge7 {[%emt 0:00:02]} 9. Ba2 {
[%emt 0:00:04]} O-O {[%emt 0:00:03]} 10. Bd2 {[%emt 0:00:05]} Rb8 {
[%emt 0:00:02]} 11. h3 {[%emt 0:00:04]} b5 {[%emt 0:00:01]} 12. axb5 {
[%emt 0:00:07]} axb5 {[%emt 0:00:01]} 13. Qc1 {[%emt 0:00:02]} Re8 {
[%emt 0:00:10]} 14. Bh6 {[%emt 0:00:06]} Bh8 {[%emt 0:00:01]} 15. Ne2 {
[%emt 0:00:04]} d5 {[%emt 0:00:07]} 16. Ng5 {[%emt 0:00:15]} Qd6 {
[%emt 0:00:19]} 17. c3 {[%emt 0:00:25]} d4 {[%emt 0:00:06]} 18. Qd2 {
[%emt 0:00:26]} Bd7 {[%emt 0:00:08]} 19. f4 {[%emt 0:00:12]} dxc3 {
[%emt 0:00:06]} 20. bxc3 {[%emt 0:00:02]} b4 {[%emt 0:00:01]} 21. Bc4 {
[%emt 0:00:12]} bxc3 {[%emt 0:00:04]} 22. Qc1 {[%emt 0:00:15]} Nd4 {
[%emt 0:00:10]} 23. e5 {[%emt 0:00:02]} Nxe2+ {[%emt 0:00:13]} 24. Rxe2 {
[%emt 0:00:02]} Qd4+ {[%emt 0:00:02]} 25. Kh2 {[%emt 0:00:01]} Nd5 {
[%emt 0:00:07]} 26. Re4 {[%emt 0:00:04]} Qf2 {[%emt 0:00:02]} 27. Ra2 {
[%emt 0:00:18]} Rb2 {[%emt 0:00:05]} 28. Rxb2 {[%emt 0:00:02]} cxb2 {
[%emt 0:00:01]} 29. Qe1 {[%emt 0:00:12]} Qxe1 {[%emt 0:00:09]} 30. Rxe1 {
[%emt 0:00:06]} Nc3 {
Zeit  (Lag: Av=0.51s, max=0.6s) . Kuppenheim gibt auf [%emt 0:00:01]} 0-1

[Event "12h Blitz Kuppenheim Endrunde"]
[Site "Kuppenheim"]
[Date "2005.06.04"]
[Round "?"]
[White "KingLoek"]
[Black "Thoms"]
[Result "1-0"]
[ECO "D43"]
[WhiteElo "2685"]
[BlackElo "2100"]
[PlyCount "75"]
[EventDate "2005.06.03"]
[EventType "blitz"]
[Source "Kuppenheim"]
[SourceDate "2005.01.01"]
[TimeControl "240"]

1. d4 {[%emt 0:00:01]} d5 {[%emt 0:00:01]} 2. c4 {[%emt 0:00:01]} e6 {
[%emt 0:00:01]} 3. Nc3 {[%emt 0:00:01]} c6 {[%emt 0:00:01]} 4. Nf3 {
[%emt 0:00:05]} Nf6 {[%emt 0:00:02]} 5. Bg5 {[%emt 0:00:02]} h6 {[%emt 0:00:01]
} 6. Bh4 {[%emt 0:00:02]} dxc4 {[%emt 0:00:01]} 7. e4 {[%emt 0:00:01]} g5 {
[%emt 0:00:02]} 8. Bg3 {[%emt 0:00:02]} b5 {[%emt 0:00:01]} 9. Be2 {
[%emt 0:00:02]} Bb7 {[%emt 0:00:02]} 10. h4 {[%emt 0:00:02]} g4 {[%emt 0:00:02]
} 11. Ne5 {[%emt 0:00:01]} h5 {[%emt 0:00:02]} 12. O-O {[%emt 0:00:02]} Nbd7 {
[%emt 0:00:03]} 13. Qc2 {[%emt 0:00:02]} Nxe5 {[%emt 0:00:07]} 14. Bxe5 {
[%emt 0:00:01]} Bg7 {[%emt 0:00:06]} 15. Rad1 {[%emt 0:00:02]} O-O {
[%emt 0:00:04]} 16. Bg3 {[%emt 0:00:03]} a6 {[%emt 0:00:05]} 17. f3 {
[%emt 0:00:09]} gxf3 {[%emt 0:00:04]} 18. Bxf3 {[%emt 0:00:02]} Qe7 {
[%emt 0:00:12]} 19. e5 {[%emt 0:00:03]} Ng4 {[%emt 0:00:06]} 20. Bxg4 {
[%emt 0:00:01]} hxg4 {[%emt 0:00:01]} 21. Ne4 {[%emt 0:00:01]} f5 {
[%emt 0:00:06]} 22. exf6 {[%emt 0:00:03]} Bxf6 {[%emt 0:00:02]} 23. Bd6 {
[%emt 0:00:04]} Qg7 {[%emt 0:00:05]} 24. Rxf6 {[%emt 0:00:09]} Rxf6 {
[%emt 0:00:03]} 25. Be5 {[%emt 0:00:01]} Raf8 {[%emt 0:00:07]} 26. Nxf6+ {
[%emt 0:00:04]} Rxf6 {[%emt 0:00:02]} 27. Qc3 {[%emt 0:00:20]} Qh6 {
[%emt 0:00:17]} 28. Bxf6 {[%emt 0:00:03]} Qxf6 {[%emt 0:00:02]} 29. Qg3 {
[%emt 0:00:00]} Qg7 {[%emt 0:00:07]} 30. Kh2 {[%emt 0:00:06]} a5 {
[%emt 0:00:06]} 31. Rf1 {[%emt 0:00:07]} b4 {[%emt 0:00:03]} 32. Rf4 {
[%emt 0:00:03]} Kh8 {[%emt 0:00:07]} 33. Rxg4 {[%emt 0:00:03]} Qf7 {
[%emt 0:00:02]} 34. Qe5+ {[%emt 0:00:15]} Kh7 {[%emt 0:00:03]} 35. h5 {
[%emt 0:00:10]} c5 {[%emt 0:00:04]} 36. h6 {[%emt 0:00:10]} Kxh6 {
[%emt 0:00:06]} 37. Qg5+ {[%emt 0:00:03]} Kh7 {[%emt 0:00:03]} 38. Rh4+ {
Kuppenheim gibt auf  (Lag: Av=0.50s, max=0.7s) [%emt 0:00:02]} 1-0

[Event "12h Blitz Kuppenheim Endrunde"]
[Site "Kuppenheim"]
[Date "2005.06.04"]
[Round "?"]
[White "Hunerfauth"]
[Black "KingLoek"]
[Result "0-1"]
[ECO "B50"]
[WhiteElo "2050"]
[BlackElo "2685"]
[PlyCount "76"]
[EventDate "2005.06.03"]
[EventType "blitz"]
[Source "Kuppenheim"]
[SourceDate "2005.01.01"]
[TimeControl "240"]

1. e4 {[%emt 0:00:03]} c5 {[%emt 0:00:02]} 2. Nf3 {[%emt 0:00:01]} d6 {
[%emt 0:00:01]} 3. c3 {[%emt 0:00:01]} Nf6 {[%emt 0:00:02]} 4. Be2 {
[%emt 0:00:02]} Nbd7 {[%emt 0:00:02]} 5. d3 {[%emt 0:00:07]} g6 {[%emt 0:00:01]
} 6. O-O {[%emt 0:00:02]} Bg7 {[%emt 0:00:00]} 7. Nbd2 {[%emt 0:00:06]} O-O {
[%emt 0:00:02]} 8. Re1 {[%emt 0:00:01]} a6 {[%emt 0:00:09]} 9. a4 {
[%emt 0:00:02]} b6 {[%emt 0:00:03]} 10. Nc4 {[%emt 0:00:04]} Bb7 {
[%emt 0:00:02]} 11. Bf1 {[%emt 0:00:15]} b5 {[%emt 0:00:07]} 12. axb5 {
[%emt 0:00:04]} axb5 {[%emt 0:00:01]} 13. Rxa8 {[%emt 0:00:01]} Qxa8 {
[%emt 0:00:01]} 14. Ne3 {[%emt 0:00:03]} h6 {[%emt 0:00:17]} 15. Bd2 {
[%emt 0:00:25]} Qa2 {[%emt 0:00:04]} 16. Qa1 {[%emt 0:00:08]} Ra8 {
[%emt 0:00:02]} 17. Nc2 {[%emt 0:00:08]} Qb3 {[%emt 0:00:06]} 18. Qb1 {
[%emt 0:00:14]} Ng4 {[%emt 0:00:11]} 19. h3 {[%emt 0:00:14]} Nge5 {
[%emt 0:00:02]} 20. Nxe5 {[%emt 0:00:01]} Nxe5 {[%emt 0:00:03]} 21. d4 {
[%emt 0:00:10]} cxd4 {[%emt 0:00:06]} 22. Nxd4 {[%emt 0:00:02]} Qa2 {
[%emt 0:00:04]} 23. Nxb5 {[%emt 0:00:06]} Qxb1 {[%emt 0:00:03]} 24. Rxb1 {
[%emt 0:00:02]} Bxe4 {[%emt 0:00:00]} 25. Re1 {[%emt 0:00:06]} Bd3 {
[%emt 0:00:04]} 26. Nd4 {[%emt 0:00:05]} Bxf1 {[%emt 0:00:06]} 27. Kxf1 {
[%emt 0:00:02]} Ra2 {[%emt 0:00:06]} 28. Bc1 {[%emt 0:00:11]} Nd3 {
[%emt 0:00:02]} 29. Rd1 {[%emt 0:00:01]} Nxc1 {[%emt 0:00:02]} 30. Rxc1 {
[%emt 0:00:01]} Rxb2 {[%emt 0:00:01]} 31. Nc6 {[%emt 0:00:05]} e6 {
[%emt 0:00:02]} 32. c4 {[%emt 0:00:03]} Bf6 {[%emt 0:00:09]} 33. Rd1 {
[%emt 0:00:02]} Rc2 {[%emt 0:00:06]} 34. Rxd6 {[%emt 0:00:03]} Rxc4 {
[%emt 0:00:01]} 35. Ke2 {[%emt 0:00:07]} h5 {[%emt 0:00:09]} 36. Kd3 {
[%emt 0:00:04]} Ra4 {[%emt 0:00:04]} 37. Ke2 {[%emt 0:00:04]} Kg7 {
[%emt 0:00:05]} 38. Ke3 {[%emt 0:00:01]} Ra6 {
Kuppenheim gibt auf  (Lag: Av=0.55s, max=1.6s) [%emt 0:00:08]} 0-1